fUST/lending_fUST_20240610
["ID","MTS","AMOUNT","RATE_DAILY","PERIOD"]
[328953710,1718027461160,-500.0,0.00019726,2]
[328953711,1718027461171,-500.0,0.00019726,2]
[328953712,1718027461182,-359.93715785,0.00019726,2]
[328953713,1718027461192,-500.0,0.00019726,2]
[328953714,1718027461202,-500.0,0.00019726,2]
[328953715,1718027461213,-663.34,0.00019726,2]
[328953716,1718027461223,-500.0,0.00019726,2]
[328953717,1718027461234,-500.0,0.00019726,2]
[328953718,1718027461244,-1812.95,0.00019726,2]
[328953719,1718027461255,-546.88,0.00019726,2]
[328953720,1718027461266,-500.0,0.00019726,2]
[328953721,1718027461277,-500.0,0.00019726,2]
[328953722,1718027461288,-500.0,0.00019726,2]
[328953723,1718027461299,-500.0,0.00019726,2]
[328953724,1718027461311,-500.0,0.00019726,2]
[328953725,1718027461321,-1110.76,0.00019726,2]
[328953726,1718027461334,-500.0,0.00019726,2]
[328953727,1718027461344,-500.0,0.00019726,2]
[328953728,1718027461354,-500.0,0.00019726,2]
[328953729,1718027461365,-500.0,0.00019726,2]
[328953730,1718027461375,-2940.84,0.00019726,2]
[328953731,1718027461385,-4098.29,0.00019726,2]
[328953732,1718027461395,-627.53,0.00019726,2]
[328953733,1718027461405,-2176.93,0.00019726,2]
[328953734,1718027461415,-500.0,0.00019726,2]
[328953735,1718027461425,-505.24122778,0.00019726,2]
[328953736,1718027461435,-500.0,0.00019726,2]
[328953737,1718027461445,-500.0,0.00019726,2]
[328953738,1718027461456,-500.0,0.00019726,2]
[328953739,1718027461472,-500.0,0.00019726,2]
[328953740,1718027461484,-170.15179308,0.00019726,2]
[328953741,1718027461494,-500.0,0.00019726,2]
[328953742,1718027461504,-500.0,0.00019726,2]
[328953743,1718027461514,-2014.2,0.00019726,2]
[328953744,1718027461524,-500.0,0.00019726,2]
[328953745,1718027461535,-653.4,0.00019726,2]
[328953746,1718027461545,-500.0,0.00019726,2]
[328953747,1718027461555,-500.0,0.00019726,2]
[328953748,1718027461565,-500.0,0.00019726,2]
[328953749,1718027461575,-500.0,0.00019726,2]
[328953750,1718027461586,-500.0,0.00019726,2]
[328953751,1718027461596,-3732.58,0.00019726,2]
[328953752,1718027461606,-500.0,0.00019726,2]
[328953753,1718027461616,-500.0,0.00019726,2]
[328953754,1718027461626,-302.72476705,0.00019781,2]
[328953755,1718027461636,-836.90615522,0.00019781,2]
[328953756,1718027461646,-2812.13279208,0.00019781,2]
[328953757,1718027461656,-691.28568206,0.00019781,2]
[328953758,1718027461666,-551.39540687,0.00019781,2]
[328953759,1718027461676,-945.32067944,0.00019781,2]
[328953760,1718027461686,-281.85605547,0.00019781,2]
[328953761,1718027461696,-6713.54318341,0.00019781,2]
[328953762,1718027461705,-12030.78,0.00019781,2]
[328953763,1718027461715,-12030.78,0.00019781,2]
[328953764,1718027461724,-908.68,0.00019781,2]
[328953765,1718027461734,-500.0,0.00019781,2]
[328953766,1718027461743,-1269.45637468,0.00019782,2]
[328953767,1718027461753,-5733.21079704,0.00019782,2]
[328953768,1718027461763,-309.9380155,0.00019782,2]
[328953769,1718027461772,-11049.51431687,0.00019782,2]
[328953770,1718027461784,-12030.78,0.00019782,2]
[328953771,1718027461794,-1903.43712619,0.00019783,2]
[328953772,1718027461804,-1342.40609524,0.00019783,2]
[328953773,1718027461815,-764.36637913,0.00019783,2]
[328953774,1718027461825,-1294.52780377,0.00019783,2]
[328953775,1718027461836,-303.96130094,0.00019783,2]
[328953776,1718027461847,-514.52467594,0.00019783,2]
[328953777,1718027461858,-720.74038188,0.00019783,2]
[328953778,1718027461868,-404.58962679,0.00019783,2]
[328953779,1718027461879,-14406.6547097,0.00019783,2]
[328953780,1718027461889,-275.41755216,0.00019783,2]
[328953781,1718027461899,-164.59629886,0.00019783,2]
[328953782,1718027461909,-528.16653539,0.00019783,2]
[328953783,1718027461920,-539.0,0.00019783,2]
[328953784,1718027461930,-215.95975088,0.00019783,2]
[328953785,1718027461940,-1498.62078344,0.00019783,2]
[328953786,1718027461950,-156.58995625,0.00019783,2]
[328953787,1718027461961,-908.68,0.00019784,2]
[328953788,1718027461971,-908.68,0.00019784,2]
[328953789,1718027461981,-500.0,0.00019784,2]
[328953790,1718027461991,-500.0,0.00019784,2]
[328953791,1718027462001,-164.42514115,0.00019785,2]
[328953792,1718027462012,-500.0,0.00019785,2]
[328953793,1718027462022,-500.0,0.00019785,2]
[328953794,1718027462033,-500.0,0.00019785,2]
[328953795,1718027462043,-214.8496273,0.00019785,2]
[328953796,1718027462053,-500.0,0.00019785,2]
[328953797,1718027462065,-500.0,0.00019785,2]
[328953798,1718027462081,-500.0,0.00019785,2]
[328953799,1718027462091,-500.0,0.00019785,2]
[328953800,1718027462102,-500.0,0.00019785,2]
[328953801,1718027462114,-500.0,0.00019785,2]
[328953802,1718027462124,-500.0,0.00019785,2]
[328953803,1718027462135,-500.0,0.00019785,2]
[328953804,1718027462146,-500.0,0.00019785,2]
[328953805,1718027462155,-500.0,0.00019785,2]
[328953806,1718027462166,-500.0,0.00019786,2]
[328953807,1718027462176,-500.0,0.00019786,2]
[328953808,1718027462187,-12030.78,0.00019883,2]
[328953809,1718027462197,-908.68,0.00019884,2]
[328953810,1718027462208,-500.0,0.00019884,2]
[328953811,1718027462218,-908.68,0.00019885,2]
[328953812,1718027462228,-500.0,0.00019885,2]
[328953813,1718027462239,-500.0,0.00019886,2]
[328953814,1718027462250,-500.0,0.00019886,2]
[328953815,1718027462261,-298.09295366,0.00019886,2]
[328953816,1718027462271,-12030.78,0.00019886,2]
[328953817,1718027462281,-908.68,0.00019886,2]
[328953818,1718027462291,-500.0,0.00019886,2]
[328953819,1718027462302,-500.0,0.00019887,2]
[328953820,1718027462311,-300.77620055,0.00019887,2]
[328953821,1718027462322,-500.0,0.00019887,2]
[328953822,1718027462334,-500.0,0.00019887,2]
[328953823,1718027462344,-516.47494295,0.00019887,2]
[328953824,1718027462353,-500.0,0.00019887,2]
[328953825,1718027462363,-500.66983211,0.00019887,2]
[328953826,1718027462373,-500.70281404,0.00019887,2]
[328953827,1718027462383,-617.83015906,0.00019887,2]
[328953828,1718027462393,-501.55689487,0.00019887,2]
[328953829,1718027462403,-500.0,0.00019887,2]
[328953830,1718027462412,-500.0,0.00019887,2]
[328953831,1718027462422,-489.57379385,0.00019887,2]
[328953832,1718027462432,-500.0,0.00019887,2]
[328953833,1718027462442,-500.0,0.00019887,2]
[328953834,1718027462452,-500.0,0.00019887,2]
[328953835,1718027462464,-501.53919583,0.00019887,2]
[328953836,1718027462474,-500.0,0.00019887,2]
[328953837,1718027462484,-283.00068631,0.00019887,2]
[328953838,1718027462494,-523.11280197,0.00019887,2]
[328953839,1718027462504,-500.0,0.00019887,2]
[328953840,1718027462513,-501.38927062,0.00019887,2]
[328953841,1718027462553,-500.0,0.00019887,2]
[328953842,1718027462563,-500.0,0.00019887,2]
[328953843,1718027462573,-500.0,0.00019889,2]
[328953844,1718027462583,-500.0,0.00019889,2]
[328953845,1718027462594,-12030.78,0.00019889,2]
[328953846,1718027462603,-908.68,0.00019889,2]
[328953847,1718027462613,-500.0,0.00019889,2]
[328953848,1718027462623,-500.0,0.0001989,2]
[328953849,1718027462632,-502.13325846,0.0001989,2]
[328953850,1718027462642,-505.05332629,0.0001989,2]
[328953851,1718027462651,-504.82390423,0.0001989,2]
[328953852,1718027462661,-514.49248772,0.0001989,2]
[328953853,1718027462670,-500.0,0.0001989,2]
[328953854,1718027462680,-500.0,0.00019894,2]
[328953855,1718027462690,-12030.78,0.00019999,2]
[328953856,1718027462700,-12030.78,0.00019999,2]
[328953857,1718027462710,-12030.78,0.00019999,2]
[328953858,1718027462720,-12030.78,0.00019999,2]
[328953860,1718027462730,-12030.78,0.00019999,2]
[328953861,1718027462740,-12030.78,0.00019999,2]
[328953862,1718027462750,-12030.86224216,0.00019999,2]
[328953863,1718027462760,-908.68,0.00019999,2]
[328953864,1718027462770,-908.68,0.00019999,2]
[328953865,1718027462780,-908.68,0.00019999,2]
[328953866,1718027462790,-908.68,0.00019999,2]
[328953867,1718027462800,-908.68,0.00019999,2]
[328953868,1718027462810,-500.0,0.00019999,2]
[328953869,1718027462820,-500.0,0.00019999,2]
[328953870,1718027462830,-500.0,0.00019999,2]
[328953871,1718027462839,-500.0,0.00019999,2]
[328953872,1718027462848,-500.0,0.00019999,2]
[328953873,1718027462858,-20944.21174642,0.0002,2]
[328953874,1718027462868,-9500.72304654,0.0002,2]
[328953875,1718027462878,-1115.98840214,0.0002,2]
[328953876,1718027462887,-52790.32910339,0.0002,2]
[328953877,1718027462897,-6384.34431452,0.0002,2]
[328953878,1718027462906,-500.0,0.0002,2]
[328953879,1718027462916,-95792.5170907,0.0002,2]
[328953880,1718027462925,-500.0,0.0002,2]
[328953881,1718027462935,-500.0,0.0002,2]
[328953882,1718027462945,-500.0,0.0002,2]
[328953883,1718027462954,-500.0,0.0002,2]
[328953884,1718027462963,-171.63,0.0002,2]
[328953885,1718027462973,-500.0,0.0002,2]
[328953886,1718027462982,-500.0,0.0002,2]
[328953887,1718027462992,-852.44,0.0002,2]
[328953888,1718027463002,-500.0,0.0002,2]
[328953889,1718027463013,-500.0,0.0002,2]
[328953890,1718027463024,-816.0,0.0002,2]
[328953891,1718027463033,-500.0,0.0002,2]
[328953892,1718027463043,-500.0,0.0002,2]
[328953893,1718027463053,-500.0,0.0002,2]
[328953894,1718027463063,-500.0,0.0002,2]
[328953895,1718027463078,-500.0,0.0002,2]
[328953896,1718027463088,-697.87,0.0002,2]
[328953897,1718027463098,-463.27680263,0.0002,2]
[328953898,1718027463110,-500.0,0.0002,2]
[328953899,1718027463120,-500.0,0.0002,2]
[328953900,1718027463130,-500.0,0.0002,2]
[328953901,1718027463140,-500.0,0.0002,2]
[328953902,1718027463153,-749.15,0.0002,2]
[328953903,1718027463163,-500.0,0.0002,2]
[328953904,1718027463173,-574.83,0.0002,2]
[328953905,1718027463183,-500.0,0.0002,2]
[328953906,1718027463193,-581.67,0.0002,2]
[328953907,1718027463204,-760.86,0.0002,2]
[328953908,1718027463214,-1000.0,0.0002,2]
[328953909,1718027463224,-166.38,0.0002,2]
[328953910,1718027463235,-500.0,0.0002,2]
[328953911,1718027463246,-775.87,0.0002,2]
[328953912,1718027463256,-793.41,0.0002,2]
[328953913,1718027463266,-346.2,0.0002,2]
[328953914,1718027463277,-500.0,0.0002,2]
[328953915,1718027463287,-1146.57,0.0002,2]
[328953916,1718027463297,-500.0,0.0002,2]
[328953917,1718027463307,-500.0,0.0002,2]
[328953918,1718027463317,-500.0,0.0002,2]
[328953919,1718027463328,-500.0,0.0002,2]
[328953920,1718027463338,-500.0,0.0002,2]
[328953921,1718027463348,-500.0,0.0002,2]
[328953922,1718027463359,-500.0,0.0002,2]
[328953923,1718027463369,-645.4,0.0002,2]
[328953924,1718027463379,-4240.31,0.0002,2]
[328953925,1718027463390,-638.56,0.0002,2]
[328953926,1718027463399,-196.32,0.0002,2]
[328953927,1718027463410,-500.0,0.0002,2]
[328953928,1718027463420,-377.73,0.0002,2]
[328953929,1718027463430,-2476.18,0.0002,2]
[328953930,1718027463441,-500.0,0.0002,2]
[328953931,1718027463451,-1036.24,0.0002,2]
[328953932,1718027463463,-500.0,0.0002,2]
[328953933,1718027463474,-1207.66,0.0002,2]
[328953934,1718027463484,-500.0,0.0002,2]
[328953935,1718027463494,-299.97,0.0002,2]
[328953936,1718027463505,-500.0,0.0002,2]
[328953937,1718027463515,-500.0,0.0002,2]
[328953938,1718027463526,-607.44,0.0002,2]
[328953939,1718027463536,-500.0,0.0002,2]
[328953940,1718027463547,-656.09,0.0002,2]
[328953941,1718027463558,-369.51,0.0002,2]
[328953942,1718027463568,-500.0,0.0002,2]
[328953943,1718027463578,-1288.07,0.0002,2]
[328953944,1718027463589,-500.0,0.0002,2]
[328953945,1718027463599,-263.31,0.0002,2]
[328953946,1718027463609,-803.58,0.0002,2]
[328953947,1718027463619,-500.0,0.0002,2]
[328953948,1718027463630,-500.0,0.0002,2]
[328953949,1718027463640,-339.33,0.0002,2]
[328953950,1718027463652,-809.62,0.0002,2]
[328953951,1718027463662,-1839.43,0.0002,2]
[328953952,1718027463672,-403.64390316,0.0002,2]
[328953953,1718027463682,-663.34,0.0002,2]
[328953954,1718027463692,-241.68,0.0002,2]
[328953955,1718027463704,-1812.95,0.0002,2]
[328953956,1718027463714,-546.88,0.0002,2]
[328953957,1718027463724,-217.41,0.0002,2]
[328953958,1718027463735,-1110.76,0.0002,2]
[328953959,1718027463745,-500.0,0.0002,2]
[328953960,1718027463755,-2940.84,0.0002,2]
[328953961,1718027463765,-4098.29,0.0002,2]
[328953962,1718027463776,-2176.93,0.0002,2]
[328953963,1718027463786,-500.0,0.0002,2]
[328953964,1718027463797,-500.0,0.0002,2]
[328953965,1718027463807,-2014.2,0.0002,2]
[328953966,1718027463818,-653.4,0.0002,2]
[328953967,1718027463830,-3732.58,0.0002,2]
[328953968,1718027463841,-500.0,0.0002,2]
[328953969,1718027463851,-908.68,0.00020158,2]
[328953970,1718027463862,-500.0,0.00020158,2]
[328953971,1718027463872,-222.06848384,0.00020159,2]
[328953972,1718027463883,-932.11630628,0.00020159,2]
[328953973,1718027463893,-500.0,0.0002016,2]
[328953974,1718027463903,-500.0,0.0002016,2]
[328953975,1718027463913,-908.68,0.0002016,2]
[328953976,1718027463925,-908.68,0.0002016,2]
[328953977,1718027463936,-908.68,0.0002016,2]
[328953978,1718027463946,-908.68,0.0002016,2]
[328953979,1718027463957,-908.68940754,0.0002016,2]
[328953980,1718027463967,-355.60586517,0.0002016,2]
[328953981,1718027463978,-500.0,0.00020161,2]
[328953982,1718027463988,-500.0,0.00020161,2]
[328953983,1718027463998,-500.0,0.00020161,2]
[328953984,1718027464009,-506.90361651,0.00020161,2]
[328953985,1718027464020,-500.0,0.00020161,2]
[328953986,1718027464032,-500.0,0.00020161,2]
[328953987,1718027464043,-517.33820942,0.00020161,2]
[328953988,1718027464053,-500.0,0.00020161,2]
[328953989,1718027464064,-509.60591812,0.00020161,2]
[328953990,1718027464081,-503.1027841,0.00020161,2]
[328953991,1718027464091,-500.0,0.00020161,2]
[328953992,1718027464102,-500.0,0.00020161,2]
[328953993,1718027464113,-500.0,0.00020163,2]
[328953994,1718027464124,-500.0,0.00020168,2]
[328953995,1718027464134,-252.4475168,0.00020273,2]
[328953996,1718027464145,-413.03018777,0.00020273,2]
[328953997,1718027464158,-500.0,0.00020273,2]
[328953998,1718027464170,-500.0,0.00020273,2]
[328953999,1718027464181,-500.0,0.00020273,2]
[328954000,1718027464192,-500.0,0.00020273,2]
[328954001,1718027464203,-500.0,0.00020273,2]
[328954002,1718027464214,-852.44,0.00020273,2]
[328954003,1718027464225,-500.0,0.00020273,2]
[328954004,1718027464235,-500.0,0.00020273,2]
[328954005,1718027464245,-816.0,0.00020273,2]
[328954006,1718027464255,-500.0,0.00020273,2]
[328954007,1718027464266,-500.0,0.00020273,2]
[328954008,1718027464276,-500.0,0.00020273,2]
[328954009,1718027464287,-500.0,0.00020273,2]
[328954010,1718027464297,-500.0,0.00020273,2]
[328954011,1718027464308,-697.87,0.00020273,2]
[328954012,1718027464318,-500.0,0.00020273,2]
[328954013,1718027464332,-500.0,0.00020273,2]
[328954014,1718027464343,-500.0,0.00020273,2]
[328954015,1718027464354,-500.0,0.00020273,2]
[328954016,1718027464365,-749.15,0.00020273,2]
[328954017,1718027464376,-500.0,0.00020273,2]
[328954018,1718027464386,-574.83,0.00020273,2]
[328954019,1718027464397,-240.23,0.00020273,2]
[328954020,1718027464407,-760.86,0.00020273,2]
[328954021,1718027464418,-500.0,0.00020273,2]
[328954022,1718027464429,-775.87,0.00020273,2]
[328954023,1718027464440,-793.41,0.00020273,2]
[328954024,1718027464451,-500.0,0.00020273,2]
[328954025,1718027464464,-1146.57,0.00020273,2]
[328954026,1718027464475,-614.59243708,0.00020273,2]
[328954027,1718027464485,-500.0,0.00020273,2]
[328954028,1718027464496,-500.0,0.00020273,2]
[328954029,1718027464506,-500.0,0.00020273,2]
[328954030,1718027464517,-500.0,0.00020273,2]
[328954031,1718027464527,-500.0,0.00020273,2]
[328954032,1718027464538,-500.0,0.00020273,2]
[328954033,1718027464549,-645.4,0.00020273,2]
[328954034,1718027464559,-4240.31,0.00020273,2]
[328954035,1718027464570,-638.56,0.00020273,2]
[328954036,1718027464581,-500.0,0.00020273,2]
[328954037,1718027464592,-500.0,0.00020273,2]
[328954038,1718027464603,-2476.18,0.00020273,2]
[328954039,1718027464613,-1036.24,0.00020273,2]
[328954040,1718027464624,-500.0,0.00020273,2]
[328954041,1718027464634,-1207.66,0.00020273,2]
[328954042,1718027464646,-500.0,0.00020273,2]
[328954043,1718027464656,-500.0,0.00020273,2]
[328954044,1718027464666,-500.0,0.00020273,2]
[328954045,1718027464677,-607.44,0.00020273,2]
[328954046,1718027464688,-181.14839902,0.00020273,2]
[328954047,1718027464698,-656.09,0.00020273,2]
[328954048,1718027464709,-1288.07,0.00020273,2]
[328954049,1718027464719,-500.0,0.00020273,2]
[328954050,1718027464729,-500.0,0.00020273,2]
[328954051,1718027464740,-803.58,0.00020273,2]
[328954052,1718027464751,-500.0,0.00020273,2]
[328954053,1718027464762,-500.0,0.00020273,2]
[328954054,1718027464772,-809.62,0.00020273,2]
[328954055,1718027464782,-1839.43,0.00020273,2]
[328954056,1718027464792,-663.34,0.00020273,2]
[328954057,1718027464802,-1812.95,0.00020273,2]
[328954058,1718027464812,-546.88,0.00020273,2]
[328954059,1718027464823,-1110.76,0.00020273,2]
[328954060,1718027464835,-500.0,0.00020273,2]
[328954061,1718027464845,-2940.84,0.00020273,2]
[328954062,1718027464855,-4098.29,0.00020273,2]
[328954063,1718027464866,-2176.93,0.00020273,2]
[328954064,1718027464876,-500.0,0.00020273,2]
[328954065,1718027464886,-500.0,0.00020273,2]
[328954066,1718027464897,-2014.2,0.00020273,2]
[328954067,1718027464907,-653.4,0.00020273,2]
[328954068,1718027464917,-3732.58,0.00020273,2]
[328954069,1718027464928,-500.0,0.00020434,2]
[328954070,1718027464939,-500.0,0.00020435,2]
[328954071,1718027464949,-500.0,0.00020435,2]
[328954072,1718027464959,-230.42337949,0.00020435,2]
[328954073,1718027464969,-500.0,0.00020435,2]
[328954074,1718027464980,-500.0,0.00020435,2]
[328954075,1718027464991,-500.0,0.00020435,2]
[328954076,1718027465002,-308.79973956,0.00020437,2]
[328954077,1718027465012,-500.0,0.00020547,2]
[328954078,1718027465023,-500.0,0.00020547,2]
[328954079,1718027465033,-500.0,0.00020547,2]
[328954080,1718027465044,-500.0,0.00020547,2]
[328954081,1718027465055,-852.44,0.00020547,2]
[328954082,1718027465066,-500.0,0.00020547,2]
[328954083,1718027465083,-500.0,0.00020547,2]
[328954084,1718027465093,-816.0,0.00020547,2]
[328954085,1718027465104,-500.0,0.00020547,2]
[328954086,1718027465115,-500.0,0.00020547,2]
[328954087,1718027465125,-500.0,0.00020547,2]
[328954088,1718027465135,-500.0,0.00020547,2]
[328954089,1718027465146,-500.0,0.00020547,2]
[328954090,1718027465159,-697.87,0.00020547,2]
[328954091,1718027465170,-500.0,0.00020547,2]
[328954092,1718027465180,-500.0,0.00020547,2]
[328954093,1718027465190,-500.0,0.00020547,2]
[328954094,1718027465200,-500.0,0.00020547,2]
[328954095,1718027465210,-749.15,0.00020547,2]
[328954096,1718027465220,-500.0,0.00020547,2]
[328954097,1718027465231,-574.83,0.00020547,2]
[328954098,1718027465241,-760.86,0.00020547,2]
[328954099,1718027465251,-500.0,0.00020547,2]
[328954100,1718027465261,-775.87,0.00020547,2]
[328954101,1718027465272,-793.41,0.00020547,2]
[328954102,1718027465282,-500.0,0.00020547,2]
[328954103,1718027465293,-1146.57,0.00020547,2]
[328954104,1718027465304,-500.0,0.00020547,2]
[328954105,1718027465314,-500.0,0.00020547,2]
[328954106,1718027465324,-500.0,0.00020547,2]
[328954107,1718027465438,-500.0,0.00020547,2]
[328954108,1718027465449,-500.0,0.00020547,2]
[328954109,1718027465460,-500.0,0.00020547,2]
[328954110,1718027465470,-645.4,0.00020547,2]
[328954111,1718027465481,-4240.31,0.00020547,2]
[328954112,1718027465491,-638.56,0.00020547,2]
[328954113,1718027465501,-500.0,0.00020547,2]
[328954114,1718027465512,-500.0,0.00020547,2]
[328954115,1718027465522,-2476.18,0.00020547,2]
[328954116,1718027465532,-1036.24,0.00020547,2]
[328954117,1718027465542,-500.0,0.00020547,2]
[328954118,1718027465552,-1207.66,0.00020547,2]
[328954119,1718027465562,-500.0,0.00020547,2]
[328954120,1718027465572,-500.0,0.00020547,2]
[328954121,1718027465583,-500.0,0.00020547,2]
[328954122,1718027465593,-607.44,0.00020547,2]
[328954123,1718027465603,-656.09,0.00020547,2]
[328954124,1718027465613,-1288.07,0.00020547,2]
[328954125,1718027465622,-500.0,0.00020547,2]
[328954126,1718027465632,-500.0,0.00020547,2]
[328954127,1718027465643,-803.58,0.00020547,2]
[328954128,1718027465653,-500.0,0.00020547,2]
[328954129,1718027465663,-500.0,0.00020547,2]
[328954130,1718027465673,-809.62,0.00020547,2]
[328954131,1718027465683,-1839.43,0.00020547,2]
[328954132,1718027465693,-663.34,0.00020547,2]
[328954133,1718027465703,-1812.95,0.00020547,2]
[328954134,1718027465713,-546.88,0.00020547,2]
[328954135,1718027465723,-1110.76,0.00020547,2]
[328954136,1718027465735,-500.0,0.00020547,2]
[328954137,1718027465745,-2940.84,0.00020547,2]
[328954138,1718027465755,-4098.29,0.00020547,2]
[328954139,1718027465765,-2176.93,0.00020547,2]
[328954140,1718027465775,-500.0,0.00020547,2]
[328954141,1718027465785,-500.0,0.00020547,2]
[328954142,1718027465795,-2014.2,0.00020547,2]
[328954143,1718027465806,-653.4,0.00020547,2]
[328954144,1718027465816,-3732.58,0.00020547,2]
[328954145,1718027465826,-420.0,0.00020701,2]
[328954146,1718027465838,-500.0,0.00020709,2]
[328954147,1718027465848,-500.0,0.00020709,2]
[328954148,1718027465859,-500.0,0.00020821,2]
[328954149,1718027465869,-500.0,0.00020821,2]
[328954150,1718027465879,-500.0,0.00020821,2]
[328954151,1718027465889,-500.0,0.00020821,2]
[328954152,1718027465899,-852.44,0.00020821,2]
[328954153,1718027465909,-500.0,0.00020821,2]
[328954154,1718027465919,-178.57054375,0.00020821,2]
[328954155,1718027465929,-816.0,0.00020821,2]
[328954156,1718027465939,-500.0,0.00020821,2]
[328954157,1718027465949,-500.0,0.00020821,2]
[328954158,1718027465959,-500.0,0.00020821,2]
[328954159,1718027465970,-500.0,0.00020821,2]
[328954160,1718027465980,-500.0,0.00020821,2]
[328954161,1718027465991,-697.87,0.00020821,2]
[328954162,1718027466001,-500.0,0.00020821,2]
[328954163,1718027466011,-500.0,0.00020821,2]
[328954164,1718027466021,-500.0,0.00020821,2]
[328954165,1718027466032,-500.0,0.00020821,2]
[328954166,1718027466043,-749.15,0.00020821,2]
[328954167,1718027466053,-500.0,0.00020821,2]
[328954168,1718027466063,-574.83,0.00020821,2]
[328954169,1718027466078,-760.86,0.00020821,2]
[328954170,1718027466090,-500.0,0.00020821,2]
[328954171,1718027466100,-775.87,0.00020821,2]
[328954172,1718027466112,-793.41,0.00020821,2]
[328954173,1718027466123,-500.0,0.00020821,2]
[328954174,1718027466134,-1146.57,0.00020821,2]
[328954175,1718027466144,-500.0,0.00020821,2]
[328954176,1718027466156,-500.0,0.00020821,2]
[328954177,1718027466167,-500.0,0.00020821,2]
[328954178,1718027466178,-500.0,0.00020821,2]
[328954179,1718027466188,-500.0,0.00020821,2]
[328954180,1718027466199,-500.0,0.00020821,2]
[328954181,1718027466210,-645.4,0.00020821,2]
[328954182,1718027466220,-4240.31,0.00020821,2]
[328954183,1718027466230,-638.56,0.00020821,2]
[328954184,1718027466240,-500.0,0.00020821,2]
[328954185,1718027466250,-500.0,0.00020821,2]
[328954186,1718027466260,-2476.18,0.00020821,2]
[328954187,1718027466271,-1036.24,0.00020821,2]
[328954188,1718027466281,-500.0,0.00020821,2]
[328954189,1718027466291,-1207.66,0.00020821,2]
[328954190,1718027466302,-500.0,0.00020821,2]
[328954191,1718027466312,-500.0,0.00020821,2]
[328954192,1718027466322,-500.0,0.00020821,2]
[328954193,1718027466334,-607.44,0.00020821,2]
[328954194,1718027466344,-656.09,0.00020821,2]
[328954195,1718027466354,-1288.07,0.00020821,2]
[328954196,1718027466365,-500.0,0.00020821,2]
[328954197,1718027466375,-500.0,0.00020821,2]
[328954198,1718027466385,-803.58,0.00020821,2]
[328954199,1718027466395,-500.0,0.00020821,2]
[328954200,1718027466405,-500.0,0.00020821,2]
[328954201,1718027466415,-809.62,0.00020821,2]
[328954202,1718027466424,-1839.43,0.00020821,2]
[328954203,1718027466434,-663.34,0.00020821,2]
[328954204,1718027466444,-1812.95,0.00020821,2]
[328954205,1718027466454,-546.88,0.00020821,2]
[328954206,1718027466467,-1110.76,0.00020821,2]
[328954207,1718027466477,-500.0,0.00020821,2]
[328954208,1718027466487,-2940.84,0.00020821,2]
[328954209,1718027466496,-4098.29,0.00020821,2]
[328954210,1718027466507,-2176.93,0.00020821,2]